bitfinex/quotes_ETHUSD_20220219
["timestamp","ask_amount","ask_price","bid_price","bid_amount"]
[1645243826901,3.59908506,2812.7,2812.5,2.31417213]
[1645243827705,3.59908506,2812.7,2812.5,1.42318133]
[1645243828104,3.59908506,2812.7,2812.5,1.42518213]
[1645243829007,3.59908506,2812.7,2812.5,2.31216133]
[1645243829210,3.59908506,2812.7,2812.5,2.31416213]
[1645243830211,3.59908506,2812.7,2812.5,2.31216133]
[1645243830450,3.59908506,2812.7,2812.5,2.31416213]
[1645243831454,3.59908506,2812.7,2812.5,2.31216133]
[1645243831760,3.59908506,2812.7,2812.5,2.31416213]
[1645243831955,3.59908506,2812.7,2812.5,1.42518213]
[1645243832554,3.59908506,2812.7,2812.5,1.42318133]
[1645243832755,3.59908506,2812.7,2812.5,1.42518213]
[1645243832956,7.2522765,2812.7,2812.5,0.5220008]
[1645243833355,3.59908506,2812.7,2812.5,0.5220008]
[1645243833757,3.59908506,2812.7,2812.5,0.52]
[1645243833955,3.59908506,2812.7,2812.5,0.5220008]
[1645243835007,3.59908506,2812.7,2812.5,0.52]
[1645243835205,3.59908506,2812.7,2812.5,0.5220008]
[1645243836006,3.59908506,2812.7,2812.5,1.4109708]
[1645243836207,3.59908506,2812.7,2812.5,2.31215133]
[1645243836407,3.59908506,2812.7,2812.5,2.31415213]
[1645243837408,3.59908506,2812.7,2812.5,2.31215133]
[1645243837608,3.59908506,2812.7,2812.5,2.31415213]
[1645243838556,3.59908506,2812.7,2812.5,2.31215133]
[1645243838759,3.59908506,2812.7,2812.5,2.31415213]
[1645243839156,3.59908506,2812.7,2812.5,2.61415213]
[1645243839760,3.59908506,2812.7,2812.6,0.90318133]
[1645243845465,3.59908506,2812.7,2812.5,0.00200078]
[1645243845865,3.59908506,2812.7,2812.5,0.90318133]
[1645243846066,3.59908506,2812.7,2812.5,0.0020008]
[1645243846265,3.59908506,2812.7,2812.5,0.90518213]
[1645243846567,3.59908506,2812.7,2812.6,1.42318133]
[1645243847164,3.59908506,2812.7,2812.6,0.52]
[1645243847371,3.59908506,2812.7,2812.6,1.42318133]
[1645243848266,3.59780357,2812.7,2812.6,1.42318133]
[1645243848468,3.59780357,2812.7,2812.6,1.72318133]
[1645243848676,1.86790669,2812.7,2812.6,7.317]
[1645243848869,1.86790669,2812.7,2812.6,8.317]
[1645243849205,1.86790669,2812.7,2812.6,8.4546]
[1645243849405,1.86790669,2812.7,2812.6,8.4562]
[1645243849609,1.1405,2813.7,2812.7,5.5]
[1645243849807,1.50874888,2813.6,2813.3,0.8886]
[1645243850012,1.50874888,2813.6,2813.3,1.4086]
[1645243850207,1.50874888,2813.6,2813.3,0.52]
[1645243851208,1.50874888,2813.6,2813.3,1.31979]
[1645243851408,1.50874888,2813.6,2813.4,0.88864]
[1645243851808,1.50874888,2813.6,2813.5,0.3]
[1645243852410,1.1405,2813.7,2813.5,0.3]
[1645243852612,1.17135126,2813.8,2813.5,0.3]
[1645243852964,1.50870217,2813.7,2813.5,0.3]
[1645243853758,1.50870217,2813.7,2813.4,0.88864]
[1645243854561,1.45870217,2813.7,2813.4,0.88864]
[1645243854961,4.823995,2813.8,2813.4,0.88864]
[1645243855364,4.823995,2813.8,2813.3,2.29723]
[1645243856061,1.17135126,2813.8,2813.3,2.29723]
[1645243856262,4.823995,2813.8,2813.3,2.29723]
[1645243856567,288.076876,2813.9,2813.3,3.39703]
[1645243856813,288.076876,2813.9,2813.4,1.0]
[1645243857008,288.076876,2813.9,2813.5,0.52]
[1645243857210,288.076876,2813.9,2813.5,0.82]
[1645243857610,288.076876,2813.9,2813.5,1.70858]
[1645243857812,288.91740545,2813.9,2813.5,1.70858]
[1645243859409,3.65264374,2813.8,2813.5,1.70858]
[1645243859608,292.51740545,2813.9,2813.5,1.40858]
[1645243859810,292.51740545,2813.9,2813.5,1.70858]
[1645243860009,292.51740545,2813.9,2813.5,1.40858]
[1645243860212,292.51740545,2813.9,2813.5,2.00858]
[1645243861462,3.65264374,2813.8,2813.5,2.00858]
[1645243862662,292.51740545,2813.9,2813.5,2.00858]
[1645243863464,3.65264374,2813.8,2813.5,2.00858]
[1645243863663,292.51740545,2813.9,2813.5,2.00858]
[1645243863864,3.65264374,2813.8,2813.5,2.00858]
[1645243864317,292.51740545,2813.9,2813.5,2.00858]
[1645243864506,3.65264374,2813.8,2813.5,2.00858]
[1645243865309,3.65264374,2813.8,2813.5,1.12]
[1645243866308,3.65264374,2813.8,2813.5,2.00867]
[1645243866507,292.51740545,2813.9,2813.5,2.00867]
[1645243867106,3.65264374,2813.8,2813.5,2.00867]
[1645243867408,292.51740545,2813.9,2813.5,2.00867]
[1645243869854,292.51740545,2813.9,2813.5,1.40867]
[1645243870057,3.65264374,2813.8,2813.5,1.40867]
[1645243870256,291.676876,2813.9,2813.5,1.40867]
[1645243870862,291.676876,2813.9,2813.6,1.777]
[1645243871060,291.676876,2813.9,2813.8,0.88844]
[1645243871257,291.676876,2813.9,2813.8,2.00844]
[1645243873806,287.415376,2813.9,2813.8,3.00844]
[1645243874410,287.415376,2813.9,2813.8,3.22975616]
[1645243874608,287.415376,2813.9,2813.8,3.22815616]
[1645243874807,287.41384455,2813.9,2813.8,3.23295616]
[1645243875006,287.41384455,2813.9,2813.8,3.09455616]
[1645243875206,287.41384455,2813.9,2813.8,3.00844]
[1645243876859,287.41384455,2813.9,2813.8,3.09455616]
[1645243877959,287.41384455,2813.9,2813.8,3.23135616]
[1645243878357,287.41384455,2813.9,2813.8,6.72815616]
[1645243878565,287.41384455,2813.9,2813.8,3.22815616]
[1645243878760,287.41384455,2813.9,2813.8,3.22895616]
[1645243878960,287.41384455,2813.9,2813.8,3.09455616]
[1645243880418,287.41384455,2813.9,2813.8,3.00844]
[1645243880617,287.41384455,2813.9,2813.8,3.14764]
[1645243880816,287.41384455,2813.9,2813.8,9.65504]
[1645243881122,287.41384455,2813.9,2813.8,9.65184]
[1645243881322,281.54662942,2813.9,2813.8,11.64073903]
[1645243881616,281.54662942,2813.9,2813.8,11.65113903]
[1645243881818,276.21757942,2813.9,2813.8,11.65273903]
[1645243882017,276.21757942,2813.9,2813.8,12.7553902]
[1645243882216,276.21757942,2813.9,2813.8,11.65033903]
[1645243882418,276.21757942,2813.9,2813.8,10.55782287]
[1645243882717,276.21757942,2813.9,2813.8,9.65024]
[1645243883358,276.21757942,2813.9,2813.8,9.65184]
[1645243883557,276.21757942,2813.9,2813.8,9.73875616]
[1645243883762,276.21757942,2813.9,2813.8,9.73715616]
[1645243884157,276.21757942,2813.9,2813.8,9.73795616]
[1645243884360,276.21757942,2813.9,2813.8,9.73875616]
[1645243884763,276.21757942,2813.9,2813.8,9.73795616]
[1645243884960,276.21757942,2813.9,2813.8,9.73875616]
[1645243885260,276.21757942,2813.9,2813.8,9.73395616]
[1645243885761,276.21757942,2813.9,2813.8,9.73315616]
[1645243885964,276.21757942,2813.9,2813.8,9.73155616]
[1645243886163,276.21757942,2813.9,2813.8,9.73235616]
[1645243886806,276.21757942,2813.9,2813.8,9.73315616]
[1645243887006,276.21757942,2813.9,2813.8,9.73475616]
[1645243887206,270.88837942,2813.9,2813.8,9.73555616]
[1645243887410,270.88837942,2813.9,2813.8,10.64553903]
[1645243887606,263.14656948,2813.9,2813.8,9.74675616]
[1645243887808,263.14656948,2813.9,2813.8,10.26214641]
[1645243888006,263.14656948,2813.9,2813.8,10.26054641]
[1645243888210,257.81748948,2813.9,2813.8,10.25974641]
[1645243888407,257.81748948,2813.9,2813.8,10.25734641]
[1645243888608,257.81748948,2813.9,2813.8,10.25574641]
[1645243888808,257.81748948,2813.9,2813.8,10.25414641]
[1645243889013,252.48836948,2813.9,2813.8,10.25654641]
[1645243889216,252.48836948,2813.9,2813.8,10.25414641]
[1645243889611,252.48836948,2813.9,2813.8,10.25494641]
[1645243889814,247.15927948,2813.9,2813.8,10.25494641]
[1645243890113,247.15927948,2813.9,2813.8,10.25414641]
[1645243890556,247.15927948,2813.9,2813.8,9.73955616]
[1645243890759,247.15927948,2813.9,2813.8,9.73875616]
[1645243891158,247.15927948,2813.9,2813.8,9.73555616]
[1645243891458,247.15927948,2813.9,2813.8,9.73155616]
[1645243891664,247.15927948,2813.9,2813.8,9.73075616]
[1645243891856,247.15927948,2813.9,2813.8,10.63072557]
[1645243892056,247.15927948,2813.9,2813.8,9.73395616]
[1645243892259,247.15927948,2813.9,2813.8,9.74195616]
[1645243892462,241.83022948,2813.9,2813.8,9.66064]
[1645243892657,241.83022948,2813.9,2813.8,9.65904]
[1645243892859,241.83022948,2813.9,2813.8,9.65664]
[1645243893059,241.83022948,2813.9,2813.8,9.65824]
[1645243893258,241.83022948,2813.9,2813.8,9.65584]
[1645243893457,241.83022948,2813.9,2813.8,9.65184]
[1645243893759,241.83022948,2813.9,2813.8,10.55070281]
[1645243893957,241.83022948,2813.9,2813.8,10.55310281]
[1645243894209,241.83022948,2813.9,2813.8,10.54990281]
[1645243894408,241.83022948,2813.9,2813.8,9.65104]
[1645243894608,241.83022948,2813.9,2813.8,10.54830281]
[1645243895007,241.83022948,2813.9,2813.8,10.55070281]
[1645243895213,241.83022948,2813.9,2813.8,10.54830281]
[1645243895816,241.83022948,2813.9,2813.8,10.54910281]
[1645243896017,241.83022948,2813.9,2813.8,10.54830281]
[1645243896222,241.83022948,2813.9,2813.8,10.54750281]
[1645243896518,241.83022948,2813.9,2813.8,10.54830281]
[1645243896722,241.83022948,2813.9,2813.8,10.54750281]
[1645243896920,241.83022948,2813.9,2813.8,10.54670281]
[1645243897119,241.83022948,2813.9,2813.8,10.54990281]
[1645243897120,236.50129948,2813.9,2813.8,10.54990281]
[1645243897319,236.50129948,2813.9,2813.8,9.65504]
[1645243897520,231.17235948,2813.9,2813.8,9.66064]
[1645243897822,231.17235948,2813.9,2813.8,9.65424]
[1645243898078,231.17235948,2813.9,2813.8,9.65344]
[1645243898274,231.17235948,2813.9,2813.8,9.65264]
[1645243898474,231.17235948,2813.9,2813.8,9.65344]
[1645243898772,231.17235948,2813.9,2813.8,9.65504]
[1645243898972,231.17235948,2813.9,2813.8,9.65984]
[1645243899278,231.17235948,2813.9,2813.8,9.65824]
[1645243899571,231.17235948,2813.9,2813.8,9.65744]
[1645243899772,231.17235948,2813.9,2813.8,9.65664]
[1645243899971,231.17235948,2813.9,2813.8,9.65744]
[1645243900371,231.17235948,2813.9,2813.8,9.65504]
[1645243900772,231.17235948,2813.9,2813.8,9.65424]
[1645243900973,231.17235948,2813.9,2813.8,9.65344]
[1645243901172,223.8230464,2813.9,2813.8,11.30134]
[1645243901376,223.8230464,2813.9,2813.8,18.66271431]
[1645243901574,222.06639815,2813.9,2813.8,30.48353579]
[1645243901819,222.06639815,2813.9,2813.8,22.81029025]
[1645243901820,215.33114815,2813.9,2813.8,22.81029025]
[1645243902012,212.11430867,2813.9,2813.8,22.81189025]
[1645243902217,196.13051867,2813.9,2813.8,27.82469025]
[1645243902414,196.13051867,2813.9,2813.8,20.46989025]
[1645243902613,196.13051867,2813.9,2813.8,15.45869025]
[1645243902813,188.38962298,2813.9,2813.8,15.59027004]
[1645243903013,188.38962298,2813.9,2813.8,15.59187004]
[1645243903214,188.38962298,2813.9,2813.8,26.44267004]
[1645243903215,183.06123298,2813.9,2813.8,26.44267004]
[1645243903615,183.06123298,2813.9,2813.8,27.33066004]
[1645243903815,177.73297298,2813.9,2813.8,27.33146004]
[1645243904015,177.73297298,2813.9,2813.8,26.8285762]
[1645243904214,172.40457298,2813.9,2813.8,15.9777762]
[1645243904419,172.40457298,2813.9,2813.8,26.8277762]
[1645243904721,167.07617298,2813.9,2813.8,26.8301762]
[1645243904916,167.07617298,2813.9,2813.8,26.8269762]
[1645243905116,167.07617298,2813.9,2813.8,26.8261762]
[1645243905319,161.74781298,2813.9,2813.8,26.8277762]
[1645243905784,161.74781298,2813.9,2813.8,15.9785762]
[1645243906084,155.87715704,2813.9,2813.8,15.9753762]
[1645243906782,155.87715704,2813.9,2813.8,15.9769762]
[1645243906987,150.54871704,2813.9,2813.8,15.9769762]
[1645243907182,150.54871704,2813.9,2813.8,26.8277762]
[1645243907383,150.54871704,2813.9,2813.8,26.8301762]
[1645243907584,150.54871704,2813.9,2813.8,17.77198456]
[1645243907883,144.68632704,2813.9,2813.8,33.9575762]
[1645243908085,144.68632704,2813.9,2813.8,36.51930663]
[1645243908283,139.35837704,2813.9,2813.8,36.51770663]
[1645243908484,139.35837704,2813.9,2813.8,36.51050663]
[1645243908681,139.35837704,2813.9,2813.8,36.51130663]
[1645243908885,134.03037704,2813.9,2813.8,36.51210663]
[1645243909083,134.03037704,2813.9,2813.8,36.51130663]
[1645243909319,134.03037704,2813.9,2813.8,36.51210663]
[1645243909519,128.70219704,2813.9,2813.8,36.51770663]
[1645243909816,128.70219704,2813.9,2813.8,38.30721303]
[1645243910014,123.37394704,2813.9,2813.8,38.31041303]
[1645243910217,123.37394704,2813.9,2813.8,38.30721303]
[1645243910414,123.37394704,2813.9,2813.8,36.51210663]
[1645243910616,118.04581704,2813.9,2813.8,36.51370663]
[1645243911014,112.71758704,2813.9,2813.8,36.51610663]
[1645243911220,112.19507643,2813.9,2813.8,36.51530663]
[1645243911414,112.19507643,2813.9,2813.8,36.51290663]
[1645243911620,106.86710643,2813.9,2813.8,36.51210663]
[1645243911915,103.65043484,2813.9,2813.8,36.51210663]
[1645243912118,98.32228484,2813.9,2813.8,40.01210663]
[1645243912318,98.32228484,2813.9,2813.8,41.80578536]
[1645243912614,98.32228484,2813.9,2813.8,40.01610663]
[1645243912816,92.99413484,2813.9,2813.8,40.01370663]
[1645243913067,92.99413484,2813.9,2813.8,40.01210663]
[1645243913670,92.25769309,2813.9,2813.8,40.01130663]
[1645243913864,92.25769309,2813.9,2813.8,40.32870663]
[1645243913865,86.92953309,2813.9,2813.8,40.32870663]
[1645243914065,86.92953309,2813.9,2813.8,40.32550663]
[1645243914265,81.60151309,2813.9,2813.8,40.32550663]
[1645243914669,81.60151309,2813.9,2813.8,40.32470663]
[1645243914865,76.27349309,2813.9,2813.8,40.32390663]
[1645243915064,76.27349309,2813.9,2813.8,40.01130663]
[1645243915464,70.94540309,2813.9,2813.8,37.4599762]
[1645243915665,70.94540309,2813.9,2813.8,40.00970663]
[1645243915868,70.94540309,2813.9,2813.8,40.00890663]
[1645243916067,70.94540309,2813.9,2813.8,37.4599762]
[1645243916267,70.94540309,2813.9,2813.8,27.02990663]
[1645243916467,70.94540309,2813.9,2813.8,37.88470663]
[1645243916720,70.94540309,2813.9,2813.8,35.3309762]
[1645243916925,70.94540309,2813.9,2813.8,37.88070663]
[1645243917120,70.94540309,2813.9,2813.8,37.87990663]
[1645243917322,70.94540309,2813.9,2813.8,37.88230663]
[1645243917723,68.53283474,2813.9,2813.8,37.88150663]
[1645243917921,68.53283474,2813.9,2813.8,35.3325762]
[1645243918122,68.53283474,2813.9,2813.8,37.87910663]
[1645243918521,68.53283474,2813.9,2813.8,35.3301762]
[1645243918728,63.20476474,2813.9,2813.8,37.88070663]
[1645243919122,63.20476474,2813.9,2813.8,35.3317762]
[1645243919322,63.20476474,2813.9,2813.8,37.88150663]
[1645243919623,63.20476474,2813.9,2813.8,35.3341762]
[1645243919828,63.20476474,2813.9,2813.8,37.88150663]
[1645243920224,63.20476474,2813.9,2813.8,30.3325762]
[1645243920467,63.20476474,2813.9,2813.8,32.88070663]
[1645243920468,62.67476474,2813.9,2813.8,32.88070663]
[1645243920666,62.67476474,2813.9,2813.8,37.88070663]
[1645243920667,57.34670474,2813.9,2813.8,37.88070663]
[1645243920868,57.34670474,2813.9,2813.8,35.3309762]
[1645243921168,57.34670474,2813.9,2813.8,37.88070663]
[1645243921367,46.25842476,2813.9,2813.8,37.88150663]
[1645243921671,46.25842476,2813.9,2813.8,37.88550663]
[1645243921867,37.71397498,2813.9,2813.8,37.88550663]
[1645243922068,37.71397498,2813.9,2813.8,37.88710663]
[1645243922268,31.77129298,2813.9,2813.8,37.88790663]
[1645243922572,31.37129298,2813.9,2813.8,37.88950663]
[1645243922767,31.37129298,2813.9,2813.8,38.39030663]
[1645243922968,26.04348298,2813.9,2813.8,38.39190663]
[1645243923167,26.04348298,2813.9,2813.8,38.39110663]
[1645243923367,25.16190402,2813.9,2813.8,40.52090663]
[1645243923573,19.83411402,2813.9,2813.8,40.52410663]
[1645243923767,19.83411402,2813.9,2813.8,40.52330663]
[1645243923969,19.83411402,2813.9,2813.8,40.52410663]
[1645243924210,2.56e-06,2814.0,2813.9,11.1816]
[1645243924414,4.30834651,2815.3,2814.3,10.98477979]
[1645243924613,4.30834651,2815.3,2814.2,0.71037]
[1645243924614,0.00539659,2815.3,2815.2,6.63177979]
[1645243924816,6.8502672,2815.5,2815.4,3.63477979]
[1645243925015,3.7934672,2815.5,2815.4,4.15477979]
[1645243925215,3.7934672,2815.5,2815.4,4.75477979]
[1645243925412,3.7934672,2815.5,2815.4,2.25477979]
[1645243925812,3.7934672,2815.5,2815.4,1.25477979]
[1645243926311,3.7934672,2815.5,2815.4,3.03028979]
[1645243926716,3.7934672,2815.5,2815.4,2.25477979]
[1645243926916,3.7934672,2815.5,2815.4,1.25477979]
[1645243927113,3.7934672,2815.5,2815.4,2.25477979]
[1645243927315,3.7934672,2815.5,2815.4,1.25477979]
[1645243927517,3.7934672,2815.5,2815.4,2.25477979]
[1645243927974,3.7934672,2815.5,2815.4,1.25477979]
[1645243928566,7.3934672,2815.5,2815.4,1.25477979]
[1645243931168,7.3934672,2815.5,2815.4,3.03038979]
[1645243931372,7.3934672,2815.5,2815.4,4.03038979]
[1645243931567,7.3934672,2815.5,2815.4,5.03038979]
[1645243932423,7.3934672,2815.5,2815.4,5.11650595]
[1645243932827,7.3934672,2815.5,2815.4,5.25010595]
[1645243933031,7.3934672,2815.5,2815.4,5.24930595]
[1645243933227,7.3934672,2815.5,2815.4,5.11650595]
[1645243933825,7.3934672,2815.5,2815.4,2.25477979]
[1645243934224,7.3934672,2815.5,2815.4,1.25477979]
[1645243934423,7.3934672,2815.5,2815.4,2.25477979]
[1645243934630,7.3934672,2815.5,2815.4,1.25477979]
[1645243945468,8.90118418,2815.5,2815.4,1.25477979]
[1645243945871,7.39186765,2815.5,2815.4,0.65477979]
[1645243946078,8.89959577,2815.5,2815.4,0.65477979]
[1645243947024,8.89959577,2815.5,2815.4,0.95477979]
[1645243947423,13.53983035,2815.5,2814.9,1.0]
[1645243947632,18.85,2815.3,2814.7,0.52]
[1645243947826,18.85,2815.3,2814.4,0.52]
[1645243947827,16.88065742,2815.2,2814.4,0.52]
[1645243948025,12.35772812,2815.1,2814.4,0.52]
[1645243948227,16.88092846,2815.0,2814.4,0.52]
[1645243948427,4.5229293,2815.0,2814.4,0.52]
[1645243948637,1.16550086,2815.3,2814.4,0.52]
[1645243948638,0.92557021,2814.9,2814.4,0.52]
[1645243949025,4.5229293,2814.8,2814.4,0.52]
[1645243949233,4.5229293,2814.8,2814.4,0.82]
[1645243949425,4.52493036,2814.8,2814.4,0.82]
[1645243949627,4.52493036,2814.8,2814.4,1.12]
[1645243950026,4.52493036,2814.8,2814.4,0.6]
[1645243950234,4.5229293,2814.8,2814.4,0.3]
[1645243950662,0.00200161,2814.7,2814.3,0.3]
[1645243950861,0.00200161,2814.7,2814.2,0.3]
[1645243951268,0.00200161,2814.7,2814.1,0.3]
[1645243951464,4.5229293,2814.8,2814.1,0.3]
[1645243951663,0.00200166,2814.6,2814.1,0.3]
[1645243951867,0.00200166,2814.6,2814.0,1.12]
[1645243952665,4.5229293,2814.8,2814.0,1.12]
[1645243952964,0.00200165,2814.5,2814.0,1.12]
[1645243953167,1.00297654,2814.4,2814.0,1.12]
[1645243955412,1.00297654,2814.4,2814.0,0.52]
[1645243956422,24.3729293,2814.3,2813.9,0.00200203]
[1645243956914,19.85,2814.3,2813.9,0.00200203]
[1645243957112,20.73873,2814.3,2813.9,0.00200203]
[1645243957315,0.88873,2814.2,2813.9,0.00200203]
[1645243957514,0.88873,2814.2,2813.5,0.25]
[1645243957717,4.5229293,2814.1,2812.3,2.78964196]
[1645243957985,4.5229293,2814.1,2811.6,6.34201698]
[1645243957986,5.0,2812.4,2811.2,0.70731764]
[1645243958283,5.0,2812.4,2808.7,6.38841073]
[1645243958284,5.0,2812.4,2809.0,3.00033388]
[1645243958285,0.88976,2811.4,2809.0,3.00033388]
[1645243958487,0.88976,2811.4,2808.9,3.5]
[1645243958488,0.88978,2811.2,2809.1,0.00397439]
[1645243958682,1.05301313,2809.2,2809.1,0.00397439]
[1645243958873,0.84708552,2809.2,2809.1,0.00397439]
[1645243959080,1.36708552,2809.2,2809.1,0.00397439]
[1645243959279,1.36708552,2809.2,2808.6,0.00397439]
[1645243959676,2.36708552,2809.2,2808.6,0.00397439]
[1645243959873,4.03818872,2809.2,2808.6,0.00397439]
[1645243960072,0.89036,2809.0,2808.6,0.00397439]
[1645243960271,0.52,2808.9,2808.8,0.0019019]
[1645243960472,0.52,2808.9,2808.6,0.00397439]
[1645243960473,0.0038038,2808.7,2808.6,0.00397439]
[1645243960776,1.0038038,2808.7,2808.5,1.1889]
[1645243960970,1.0038038,2808.7,2808.3,0.00397439]
[1645243960971,13.7008293,2808.6,2808.3,3.909e-05]
[1645243961173,13.7008293,2808.6,2807.6,0.25]
[1645243961174,0.52,2808.5,2807.6,0.25]
[1645243961374,4.71374347,2808.4,2806.3,1.04170822]
[1645243961577,0.89086,2807.9,2806.3,6.29170822]
[1645243961821,1.0687682,2807.9,2806.3,6.29170822]
[1645243962220,0.8906682,2807.9,2806.3,5.25]
[1645243962422,5.04356358,2807.9,2806.8,1.4565]
[1645243962621,5.04356358,2807.9,2806.8,1.7565]
[1645243963022,8.64356358,2807.9,2806.8,1.7565]
[1645243963431,8.64356358,2807.9,2807.1,1.09598585]
[1645243963432,4.15289538,2807.9,2807.1,1.09598585]
[1645243963622,0.2729,2808.0,2807.7,5.0]
[1645243964820,0.2729,2808.0,2806.9,0.0121606]
[1645243965023,4.20657698,2808.1,2807.7,5.00213489]
[1645243965497,5.09726698,2808.1,2807.7,5.00213489]
[1645243965884,5.09726698,2808.1,2807.7,5.0]
[1645243966083,5.09726698,2808.1,2807.0,4.2035]
[1645243966286,5.09726698,2808.1,2807.8,0.00213487]
[1645243966486,6.61726698,2808.1,2807.8,0.00213487]
[1645243966889,1.0,2807.9,2807.8,0.00213487]
[1645243967084,5.20657698,2807.9,2807.3,0.008541]
[1645243967286,0.89091,2807.8,2807.0,3.7035]
[1645243967486,1.0,2807.5,2807.3,0.00854106]
[1645243967885,1.0,2807.6,2807.3,0.00854106]
[1645243968285,1.0,2807.6,2807.0,3.7035]
[1645243968587,1.0,2807.6,2807.3,0.00213507]
[1645243969418,13.20657698,2807.5,2807.0,3.65563507]
[1645243969616,14.09747698,2807.5,2807.0,3.65563507]
[1645243969816,14.09747698,2807.5,2807.3,2.811e-05]
[1645243970015,4.20657698,2807.4,2807.3,2.811e-05]
[1645243970217,5.20657698,2807.4,2807.3,2.811e-05]
[1645243970817,5.20657698,2807.4,2807.0,3.65563507]
[1645243971222,9.0,2807.0,2806.8,1.1565]
[1645243971421,1.78247,2806.8,2806.0,5.0]
[1645243971618,4.18023348,2806.7,2806.0,5.0]
[1645243971817,1.0,2806.6,2806.0,5.0]
[1645243972520,1.0,2806.5,2806.0,5.0]
[1645243972720,4.18023348,2806.4,2805.3,0.25]
[1645243972974,4.18023348,2806.4,2805.4,5.0]
[1645243972975,1.78283,2806.3,2805.4,5.0]
[1645243973169,4.18023348,2806.2,2805.4,5.0]
[1645243973369,4.18023348,2806.2,2805.0,0.11515]
[1645243973573,1.0,2806.1,2805.7,5.00220286]
[1645243973966,1.0,2806.1,2805.9,5.0]
[1645243974171,3.3722226,2806.7,2805.7,0.00220286]
[1645243974172,1.0,2806.2,2805.7,0.00220286]
[1645243974369,0.52,2806.7,2805.0,0.20984768]
[1645243974370,3.6,2806.1,2805.8,5.0]
[1645243974573,3.6,2806.1,2805.1,0.25]
[1645243974773,3.6,2806.1,2805.4,0.00807477]
[1645243974774,9.0,2805.9,2805.4,0.00807477]
[1645243974973,9.89157,2805.9,2805.4,0.00807477]
[1645243975174,0.8915282,2805.8,2805.4,0.00807477]
[1645243975368,0.89159,2805.6,2805.4,0.00807477]
[1645243975570,0.89159,2805.6,2805.0,5.11515]
[1645243977013,4.18023348,2805.5,2805.0,5.11515]
[1645243977217,4.18023348,2805.5,2805.0,5.06515]
[1645243977713,0.89159,2805.6,2805.0,5.06515]
[1645243978317,0.89159,2805.6,2805.1,0.00123358]
[1645243979117,4.18023348,2805.5,2805.0,5.06515]
[1645243979321,4.18023348,2805.5,2805.2,0.0022058]
[1645243979518,5.07183938,2805.5,2805.2,0.0022058]
[1645243980318,0.8916059,2805.5,2805.0,5.06515]
[1645243980569,1.78321,2805.6,2805.2,0.0022058]
[1645243980570,0.89159,2805.6,2805.2,0.0022058]
[1645243980768,1.0,2805.7,2805.4,5.0]
[1645243980966,1.0,2805.8,2805.4,5.0]
[1645243981167,0.89135,2805.9,2805.4,5.0]
[1645243981364,0.89135,2805.9,2805.3,5.0]
[1645243981568,0.89135,2805.9,2805.8,0.89989968]
[1645243981773,1.7827,2806.2,2805.8,5.0]
[1645243981774,1.0,2806.2,2805.8,5.0]
[1645243981968,1.0,2806.8,2806.1,5.0]
[1645243982272,1.89101,2807.1,2806.1,5.0]
[1645243982665,1.89101,2807.1,2805.6,4.70023348]
[1645243982867,1.89101,2807.1,2806.2,5.0]
[1645243983867,2.7821094,2807.1,2806.2,5.0]
[1645243984068,2.7821094,2807.1,2805.8,5.0]
[1645243984069,1.7823882,2807.0,2805.8,5.0]
[1645243984327,0.8912,2806.7,2805.9,0.00882274]
[1645243984621,0.8912,2806.7,2805.9,1.20162274]
[1645243985025,1.0,2807.1,2806.6,5.0]
[1645243985227,1.0,2807.4,2807.0,5.0]
[1645243985424,1.89077,2807.7,2807.0,5.0]
[1645243985724,1.0,2807.8,2807.0,1.4]
[1645243986124,1.0,2807.7,2806.9,1.4]
[1645243986327,1.0,2807.7,2806.8,1.2455]
[1645243986528,1.89081,2807.5,2806.8,1.2455]
[1645243986827,1.0,2807.4,2806.8,1.2455]
[1645243987624,2.78196,2807.4,2806.8,1.2455]
[1645243987825,0.00220481,2807.2,2806.8,1.2455]
[1645243988873,0.89088,2807.3,2806.8,1.2455]
[1645243989074,0.00220486,2807.1,2806.8,1.2455]
[1645243989878,2.67527886,2807.1,2806.8,1.2455]
[1645243990085,2.673074,2807.1,2806.8,1.2455]
[1645243990274,2.67527888,2807.1,2806.8,1.2455]
[1645243990477,2.67527888,2807.1,2806.4,0.01761318]
[1645243990478,0.36748454,2806.7,2806.4,0.01761318]
[1645243990673,1.25858454,2806.7,2806.4,0.01761318]
[1645243990876,1.25858454,2806.7,2806.5,1.4]
[1645243991076,0.36748454,2806.7,2806.5,1.4]
[1645243991276,0.36748454,2806.7,2806.4,0.01761318]
[1645243991476,0.36968957,2806.7,2806.4,0.01761318]
[1645243992316,0.36748454,2806.7,2806.4,0.01761318]
[1645243992622,0.36968959,2806.7,2806.4,0.01761318]
[1645243993616,0.36748454,2806.7,2806.4,0.01761318]
[1645243993817,0.36968959,2806.7,2806.4,0.01761318]
[1645243994024,0.36968959,2806.7,2806.1,1.1405]
[1645243994221,2.15194959,2806.7,2806.1,1.1405]
[1645243994621,1.0,2806.6,2806.1,1.1405]
[1645243995019,0.0021307,2806.5,2806.1,1.1405]
[1645243995481,0.89119,2806.4,2806.1,1.1405]
[1645243995671,0.89119,2806.4,2806.1,2.5405]
[1645243996069,0.89119,2806.4,2806.1,1.1405]
[1645243996271,0.89332076,2806.4,2806.1,1.0905]
[1645243997274,0.89119,2806.4,2806.1,1.0905]
[1645243997475,1.89332076,2806.4,2806.1,1.0905]
[1645243997673,1.0,2806.3,2806.1,1.0905]
[1645243998073,4.49332076,2806.4,2806.1,1.0905]
[1645243998373,4.49119,2806.4,2806.1,1.0905]
[1645243998976,4.49119,2806.4,2806.3,1.4]
[1645243998977,3.6,2806.4,2806.3,1.4]
[1645243999215,3.6,2806.4,2806.1,1.0905]
[1645243999815,3.60200654,2806.4,2806.1,1.0905]
[1645244000719,3.60200654,2806.4,2806.3,1.4]
[1645244000918,3.60200654,2806.4,2806.1,1.0905]
[1645244000919,3.6,2806.4,2806.1,1.0905]
[1645244001119,3.60200654,2806.4,2806.1,1.0905]
[1645244002128,0.02494449,2806.3,2806.1,1.0905]
[1645244002823,0.02494449,2806.3,2806.1,2.4905]
[1645244003285,0.02494449,2806.3,2806.1,1.0905]
[1645244003490,0.02705024,2806.3,2806.1,1.0905]
[1645244004584,0.02494449,2806.3,2806.1,1.0905]
[1645244004783,0.02687064,2806.3,2806.1,1.0905]
[1645244005384,15.06366506,2806.3,2806.0,1.2445]
[1645244005600,15.06366506,2806.3,2805.7,1.1401]
[1645244005601,4.21173891,2806.3,2805.7,1.1401]
[1645244005791,14.45,2806.2,2805.7,1.1401]